bitfinex/quotes_SOLUSD_20250531
["timestamp","ask_amount","ask_price","bid_price","bid_amount"]
[1748694464712,0.28432314,153.81,153.78,10.42642498]
[1748694465293,29.07607384,153.82,153.78,16.92920579]
[1748694465294,0.14216157,153.82,153.78,16.92920579]
[1748694465610,157.32642498,153.83,153.79,10.42642498]
[1748694465911,0.28432314,153.82,153.79,10.42642498]
[1748694467111,0.28432314,153.82,153.79,16.92862936]
[1748694469213,0.28432314,153.82,153.8,10.42642498]
[1748694469508,0.28432314,153.82,153.79,16.92862936]
[1748694471115,146.9,153.83,153.81,10.42642498]
[1748694471319,0.28432314,153.84,153.81,10.42642498]
[1748694472922,146.9,153.87,153.83,10.42642498]
[1748694473122,0.28432314,153.86,153.83,10.42642498]
[1748694473710,0.14216157,153.86,153.83,10.42642498]
[1748694474026,0.28432314,153.86,153.83,10.42642498]
[1748694475408,0.28432314,153.86,153.83,16.92710432]
[1748694476223,0.28432314,153.86,153.83,10.42642498]
[1748694476426,0.28432314,153.86,153.82,16.92736169]
[1748694477827,0.28432314,153.86,153.83,10.42642498]
[1748694479432,0.28432314,153.86,153.82,16.92736169]
[1748694479610,35.85994547,153.86,153.81,10.42642498]
[1748694480611,35.85994547,153.86,153.81,16.92794227]
[1748694481134,25.43352049,153.86,153.81,16.92794227]
[1748694481303,25.43352049,153.86,153.81,10.42642498]
[1748694481619,35.85994547,153.86,153.81,10.42642498]
[1748694481819,35.85994547,153.86,153.81,16.92784769]
[1748694484537,35.85994547,153.86,153.81,10.42642498]
[1748694485138,35.85994547,153.86,153.81,16.92794516]
[1748694486819,146.9,153.87,153.83,10.42642498]
[1748694487128,0.28432314,153.86,153.83,10.42642498]
[1748694488372,0.28432314,153.86,153.82,10.42642498]
[1748694488550,0.28432314,153.86,153.83,6.50068257]
[1748694490035,0.28432314,153.86,153.82,10.42642498]
[1748694490209,0.28432314,153.86,153.81,10.42642498]
[1748694490618,18.933972,153.86,153.8,10.42642498]
[1748694490816,18.64964886,153.84,153.79,20.78642498]
[1748694491034,0.28432314,153.83,153.79,20.78642498]
[1748694492039,0.28432314,153.83,153.8,10.42642498]
[1748694492609,18.64964886,153.84,153.79,16.86224102]
[1748694492610,0.28432314,153.84,153.81,10.42642498]
[1748694492836,0.28432314,153.85,153.81,10.42642498]
[1748694493428,146.9,153.87,153.81,10.42642498]
[1748694494041,0.28432314,153.86,153.82,6.50110518]
[1748694494840,11.86697934,153.88,153.83,10.42642498]
[1748694496026,11.86697934,153.88,153.84,6.50026001]
[1748694496231,11.86697934,153.88,153.84,16.92668499]
[1748694503428,11.86697934,153.88,153.84,6.50026001]
[1748694505356,0.28432314,153.87,153.83,16.92694111]
[1748694507059,0.28432314,153.87,153.83,10.42642498]
[1748694507433,0.28432314,153.87,153.82,16.92736538]
[1748694508658,6.78340064,153.87,153.82,16.92736538]
[1748694509271,6.78340064,153.87,153.82,10.42642498]
[1748694509777,0.28432314,153.85,153.8,6.50176671]
[1748694509944,0.28432314,153.85,153.81,10.42642498]
[1748694510749,6.78438753,153.85,153.81,10.42642498]
[1748694511069,0.28432314,153.83,153.8,10.42642498]
[1748694512260,0.28432314,153.83,153.79,20.78642498]
[1748694512780,6.78518671,153.83,153.79,20.78642498]
[1748694514879,0.28432314,153.83,153.79,27.28878641]
[1748694516365,6.78501072,153.83,153.79,20.78642498]
[1748694519961,6.78501072,153.83,153.79,27.28872184]
[1748694519962,0.28432314,153.83,153.79,27.28872184]
[1748694525056,6.78506922,153.83,153.79,20.78642498]
[1748694525868,6.78506922,153.83,153.79,17.0546466]
[1748694528089,6.78506922,153.83,153.79,10.36]
[1748694528787,6.78506922,153.83,153.75,42.84368561]
[1748694528788,0.28432314,153.81,153.75,42.84368561]
[1748694528994,0.28432314,153.81,153.77,6.6946466]
[1748694530906,6.78589337,153.81,153.77,6.6946466]
[1748694533502,13.48053997,153.81,153.76,13.197914]
[1748694534996,0.28432314,153.81,153.77,13.19785895]
[1748694535500,6.78589571,153.81,153.77,6.6946466]
[1748694541483,6.78589571,153.81,153.76,13.19814853]
[1748694541682,6.78589571,153.81,153.77,6.6946466]
[1748694544086,0.28432314,153.81,153.77,6.50321647]
[1748694544890,6.7858742,153.81,153.75,6.50406504]
[1748694545087,0.28432314,153.81,153.76,6.6946466]
[1748694545291,0.28432314,153.81,153.77,6.50321909]
[1748694546183,6.78585609,153.81,153.77,6.50321909]
[1748694546910,6.78585609,153.81,153.77,6.6946466]
[1748694547320,6.78585609,153.81,153.76,6.6946466]
[1748694547685,13.48050269,153.81,153.76,6.6946466]
[1748694548306,13.48050269,153.81,153.76,13.198277]
[1748694548605,6.78585609,153.81,153.76,13.198277]
[1748694550988,0.28432314,153.79,153.76,6.6946466]
[1748694551190,0.28432314,153.79,153.75,6.6946466]
[1748694553089,6.78678182,153.79,153.75,6.6946466]
[1748694553288,6.78678182,153.79,153.76,6.6946466]
[1748694553289,0.28432314,153.79,153.76,6.6946466]
[1748694553532,146.9,153.82,153.77,6.6946466]
[1748694553702,146.9,153.82,153.78,6.6946466]
[1748694553902,0.14216157,153.81,153.77,6.6946466]
[1748694554594,0.28432314,153.81,153.77,6.6946466]
[1748694555792,0.28432314,153.81,153.77,13.19746011]
[1748694556312,0.28432314,153.81,153.78,6.6946466]
[1748694557917,0.28432314,153.81,153.78,13.19716563]
[1748694561934,18.64964886,153.85,153.8,6.6946466]
[1748694562598,0.14216157,153.84,153.8,6.6946466]
[1748694562802,0.28432314,153.84,153.8,6.6946466]
[1748694563626,0.28432314,153.84,153.8,13.19635231]
[1748694565729,6.78461813,153.84,153.8,13.19635231]
[1748694565903,6.78461813,153.84,153.8,6.6946466]
[1748694566408,0.28432314,153.84,153.8,13.19653352]
[1748694572527,0.28432314,153.84,153.8,6.6946466]
[1748694572715,6.78463146,153.84,153.8,6.6946466]
[1748694573115,0.28432314,153.84,153.8,13.19657503]
[1748694574228,0.28432314,153.82,153.76,10.32]
[1748694574413,0.28432314,153.82,153.78,6.6946466]
[1748694574617,0.28432314,153.82,153.77,6.6946466]
[1748694574828,0.28432314,153.8,153.77,6.6946466]
[1748694575916,0.28432314,153.8,153.77,13.197781]
[1748694576334,18.933972,153.83,153.79,6.6946466]
[1748694576512,18.933972,153.83,153.8,6.6946466]
[1748694577540,18.933972,153.83,153.79,6.6946466]
[1748694578415,18.933972,153.83,153.79,13.19668346]
[1748694580252,18.933972,153.83,153.77,22.76126682]
[1748694580535,18.933972,153.83,153.79,6.6946466]
[1748694581121,25.4350226,153.83,153.79,6.6946466]
[1748694581332,32.1296692,153.83,153.78,6.6946466]
[1748694582432,32.1296692,153.83,153.78,13.19741198]
[1748694583225,18.933972,153.81,153.78,6.6946466]
[1748694583425,0.28432314,153.78,153.74,6.8043695]
[1748694583838,0.28432314,153.78,153.75,6.6946466]
[1748694589249,6.50281484,153.78,153.75,6.6946466]
[1748694589447,6.78684137,153.79,153.75,6.6946466]
[1748694594775,0.28432314,153.77,153.74,0.1097229]
[1748694595657,6.78763489,153.77,153.74,0.1097229]
[1748694600343,0.28432314,153.77,153.75,6.6946466]
[1748694600574,0.28432314,153.77,153.74,6.8043695]
[1748694601162,146.9,153.81,153.76,6.6946466]
[1748694601679,0.28432314,153.8,153.78,6.6946466]
[1748694602481,0.14216157,153.8,153.78,6.6946466]
[1748694602644,0.14216157,153.8,153.77,6.6946466]
[1748694602844,0.28432314,153.8,153.77,6.6946466]
[1748694604465,0.28432314,153.8,153.77,13.19784296]
[1748694605663,0.28432314,153.8,153.78,6.6946466]
[1748694607664,0.28432314,153.78,153.75,6.6946466]
[1748694608370,0.28432314,153.78,153.76,6.6946466]
[1748694613755,6.50201153,153.8,153.76,6.6946466]
[1748694613756,146.9,153.81,153.76,6.50361646]
[1748694614073,8.2367466,153.85,153.79,6.6946466]
[1748694614274,8.2367466,153.85,153.8,6.6946466]
[1748694614275,30.31431816,153.84,153.8,6.6946466]
[1748694614464,0.28432314,153.82,153.79,6.6946466]
[1748694614865,36.81485828,153.84,153.79,6.6946466]
[1748694615058,0.28432314,153.82,153.79,6.6946466]
[1748694615468,0.14216157,153.82,153.79,6.6946466]
[1748694615653,0.14216157,153.82,153.79,13.19696878]
[1748694618074,0.14216157,153.82,153.79,10.46050754]
[1748694619288,0.28432314,153.83,153.81,10.46050754]
[1748694620071,11.6646693,153.84,153.82,10.46050754]
[1748694620574,146.9,153.86,153.82,10.46050754]
[1748694620774,0.14216157,153.85,153.82,10.46050754]
[1748694620952,0.28432314,153.85,153.82,10.46050754]
[1748694621361,0.28432314,153.85,153.8,10.3]
[1748694621362,10.46050754,153.84,153.8,10.3]
[1748694621788,10.46050754,153.84,153.78,10.46050754]
[1748694621789,18.933972,153.83,153.78,10.46050754]
[1748694622865,10.46050754,153.84,153.78,10.46050754]
[1748694622866,0.28432314,153.8,153.78,10.46050754]
[1748694625389,18.933972,153.83,153.76,16.446]
[1748694625587,57.58009376,153.85,153.77,10.46050754]
[1748694625588,0.28432314,153.8,153.77,10.46050754]
[1748694626167,0.28432314,153.8,153.78,10.46050754]
[1748694626582,1.5505,153.85,153.79,10.46050754]
[1748694626897,18.64964886,153.85,153.81,10.46050754]
[1748694627077,0.28432314,153.84,153.81,10.46050754]
[1748694627393,18.64964886,153.85,153.81,10.46050754]
[1748694627598,0.28432314,153.84,153.81,10.46050754]
[1748694628293,0.14216157,153.84,153.81,10.46050754]
[1748694628603,0.28432314,153.84,153.81,10.46050754]
[1748694630583,0.28432314,153.84,153.81,16.96201747]
[1748694631005,6.78474578,153.84,153.8,10.46050754]
[1748694631202,0.28432314,153.82,153.8,10.46050754]
[1748694632095,0.28432314,153.82,153.79,10.46050754]
[1748694632309,6.78559067,153.82,153.79,10.46050754]
[1748694633682,0.28432314,153.82,153.79,10.46050754]
[1748694633898,10.46050754,153.84,153.8,10.46050754]
[1748694633899,25.4343678,153.84,153.8,10.46050754]
[1748694634090,18.933972,153.84,153.81,10.46050754]
[1748694634477,25.43435468,153.84,153.8,10.46050754]
[1748694635008,35.89486222,153.84,153.77,6.50303795]
[1748694635299,35.89486222,153.84,153.78,10.46050754]
[1748694635606,35.89486222,153.84,153.79,10.46050754]
[1748694635803,75.65486222,153.84,153.79,10.46050754]
[1748694636986,0.28432314,153.82,153.78,10.46050754]
[1748694637307,0.28432314,153.82,153.77,10.46050754]
[1748694638805,0.28432314,153.8,153.77,10.46050754]
[1748694640521,6.78637804,153.8,153.77,10.46050754]
[1748694640692,0.28432314,153.8,153.77,10.46050754]
[1748694641612,0.28432314,153.79,153.76,20.76050754]
[1748694641991,18.933972,153.79,153.76,20.76050754]
[1748694642689,25.43650204,153.79,153.76,20.76050754]
[1748694643806,18.933972,153.79,153.76,20.76050754]
[1748694644409,0.28432314,153.79,153.77,10.46050754]
[1748694645114,0.28432314,153.78,153.77,10.46050754]
[1748694645321,0.28432314,153.78,153.76,20.76050754]
[1748694647125,6.78712441,153.78,153.76,20.76050754]
[1748694648018,6.78712441,153.78,153.76,10.3]
[1748694648388,6.78712441,153.78,153.76,20.76050754]
[1748694649321,18.64964886,153.77,153.74,0.1097229]
[1748694649560,0.28432314,153.76,153.74,0.1097229]
[1748694651314,6.78838818,153.75,153.74,0.1097229]
[1748694652212,0.28432314,153.75,153.74,0.1097229]
[1748694653299,6.78838818,153.75,153.74,0.1097229]
[1748694654727,18.933972,153.75,153.74,0.1097229]
[1748694654922,0.28432314,153.75,153.74,0.1097229]
[1748694655098,0.28432314,153.75,153.74,10.57023044]
[1748694655297,25.15255669,153.78,153.74,10.57023044]
[1748694655535,167.66050754,153.82,153.77,10.46050754]
[1748694655896,167.66050754,153.82,153.74,6.61399928]
[1748694655897,8.02092603,153.84,153.8,10.46050754]
[1748694656191,18.933972,153.83,153.8,10.46050754]
[1748694656425,18.933972,153.83,153.74,12.71479928]
[1748694656426,18.933972,153.83,153.74,28.97601952]
[1748694656599,18.933972,153.83,153.78,10.46050754]
[1748694656600,29.39447954,153.83,153.78,10.46050754]
[1748694657321,0.14216157,153.8,153.78,10.46050754]
[1748694657710,0.28432314,153.8,153.78,10.46050754]
[1748694660203,0.28432314,153.8,153.77,10.46050754]
[1748694660512,0.28432314,153.79,153.77,10.46050754]
[1748694663297,18.933972,153.79,153.76,10.46050754]
[1748694663603,18.933972,153.79,153.74,12.714958]
[1748694663604,18.933972,153.79,153.75,10.46050754]
[1748694664427,0.28432314,153.79,153.77,10.46050754]
[1748694666340,18.64964886,153.83,153.78,10.46050754]
[1748694666509,18.64964886,153.84,153.8,16.96232459]
[1748694666705,18.64964886,153.84,153.81,10.46050754]
[1748694666909,0.28432314,153.83,153.81,10.46050754]
[1748694667155,18.64964886,153.84,153.81,10.46050754]
[1748694667315,0.14216157,153.83,153.81,10.46050754]
[1748694667929,0.28432314,153.83,153.81,10.46050754]
[1748694671017,0.28432314,153.83,153.77,33.11039873]
[1748694671018,0.28432314,153.83,153.78,6.5027962]
[1748694671320,0.28432314,153.83,153.81,10.46050754]
[1748694672127,0.28432314,153.84,153.81,10.46050754]
[1748694673014,0.28432314,153.84,153.81,16.96198226]
[1748694673920,0.28432314,153.84,153.81,10.46050754]
[1748694674226,0.28432314,153.84,153.81,16.96191356]
[1748694677032,0.28432314,153.84,153.81,10.46050754]
[1748694678234,0.28432314,153.84,153.81,16.96202264]
[1748694679114,0.28432314,153.84,153.81,10.46050754]
[1748694682068,0.28432314,153.82,153.77,10.28]
[1748694682354,0.28432314,153.8,153.77,10.28]
[1748694682698,0.28432314,153.8,153.77,20.74050754]
[1748694683439,0.28432314,153.8,153.77,10.28]
[1748694685438,0.28432314,153.8,153.77,27.24371304]
[1748694685830,0.28432314,153.8,153.77,10.28]
[1748694686147,0.28432314,153.8,153.77,20.74050754]
[1748694686342,0.28432314,153.8,153.77,27.24369735]
[1748694686928,169.1093405,153.86,153.8,6.50195058]
[1748694687257,0.28432314,153.84,153.8,16.96245812]
[1748694687734,29.1101564,153.85,153.8,16.96245812]
[1748694688162,0.28432314,153.84,153.8,16.96245812]
[1748694691452,6.78482721,153.84,153.8,10.46050754]
[1748694691655,0.28432314,153.82,153.79,10.46050754]
[1748694692226,0.28432314,153.82,153.78,6.50246467]
[1748694692425,0.28432314,153.82,153.79,10.46050754]
[1748694694138,0.28432314,153.82,153.79,16.96277966]
[1748694696752,0.28432314,153.84,153.8,10.46050754]
[1748694697445,0.28432314,153.84,153.8,16.96222123]
[1748694699730,0.28432314,153.84,153.81,10.46050754]
[1748694700661,11.74883296,153.86,153.82,10.46050754]
[1748694701250,11.74883296,153.86,153.83,6.50068257]
[1748694701439,18.79181043,153.87,153.83,6.50068257]
[1748694701643,0.14216157,153.86,153.83,6.50068257]
[1748694702056,10.46050754,153.85,153.79,7.9139]
[1748694702230,0.14216157,153.85,153.8,10.46050754]
[1748694702440,0.14216157,153.85,153.81,10.46050754]
[1748694702843,0.14216157,153.84,153.8,10.46050754]
[1748694703057,0.14216157,153.84,153.8,16.96245812]
[1748694703555,0.14216157,153.84,153.81,10.46050754]
[1748694704042,0.14216157,153.84,153.81,16.9620278]
[1748694705554,0.28432314,153.86,153.81,16.9620278]
[1748694706458,0.28432314,153.84,153.81,16.9620278]
[1748694706867,18.933972,153.87,153.83,10.46050754]
[1748694707154,18.64964886,153.87,153.83,10.46050754]
[1748694707359,0.28432314,153.86,153.82,10.46050754]
[1748694708149,0.28432314,153.86,153.81,10.46050754]
[1748694709264,0.28432314,153.86,153.82,6.50110518]
[1748694709440,0.28432314,153.86,153.82,16.96161272]
[1748694711269,0.28432314,153.86,153.82,6.50110518]
[1748694712069,0.28432314,153.84,153.81,10.46050754]
[1748694712462,0.28432314,153.84,153.8,16.96236287]
[1748694716569,0.28432314,153.84,153.81,10.46050754]
[1748694717167,0.28432314,153.84,153.8,6.50185533]
[1748694717468,0.28432314,153.84,153.81,10.46050754]
[1748694718674,0.28432314,153.84,153.81,16.9618276]
[1748694720874,0.28432314,153.85,153.82,10.46050754]
[1748694721676,18.64964886,153.87,153.82,10.46050754]
[1748694722001,18.64964886,153.87,153.81,6.50132006]
[1748694722002,0.28432314,153.86,153.83,10.46050754]
[1748694722753,0.28432314,153.86,153.84,6.50026001]
[1748694722955,0.28432314,153.86,153.83,16.96101541]
[1748694724050,0.28432314,153.86,153.83,6.50050787]
[1748694725379,0.28432314,153.86,153.83,16.96101541]
[1748694727686,0.28432314,153.86,153.83,6.50050787]
[1748694727853,0.28432314,153.86,153.82,16.96151356]
[1748694728186,0.28432314,153.86,153.82,6.50100602]
[1748694731189,0.28432314,153.86,153.82,6.69069212]
[1748694733061,24.7634907,153.89,153.83,6.50068257]
[1748694733261,0.28432314,153.87,153.83,13.19137469]
[1748694736574,11.57450317,153.89,153.83,29.44308111]
[1748694736781,180.09006328,153.92,153.87,6.69069212]
[1748694736972,0.28432314,153.91,153.87,6.69069212]
[1748694737778,6.781667,153.91,153.87,6.69069212]
[1748694737979,6.781667,153.91,153.86,16.94831099]
[1748694740191,0.28432314,153.91,153.86,16.94831099]
[1748694740393,0.28432314,153.91,153.87,10.44903831]
[1748694742464,0.28432314,153.91,153.84,6.50026001]
[1748694742682,0.28432314,153.91,153.87,10.44903831]
[1748694745389,0.28432314,153.91,153.87,16.94788952]
[1748694745980,0.28432314,153.91,153.87,10.44903831]
[1748694745981,6.78173166,153.91,153.87,10.44903831]
[1748694746170,17.23076997,153.91,153.86,16.94841205]
[1748694746400,6.78173166,153.91,153.87,10.44903831]
[1748694747588,0.28432314,153.91,153.87,16.94797845]
[1748694747785,18.52156569,153.92,153.88,10.44903831]
[1748694747786,1.5755,153.92,153.88,10.44903831]
[1748694748799,1.5755,153.92,153.87,6.49894014]
[1748694748800,1.5469,153.97,153.91,10.44903831]
[1748694749009,8.04182841,153.97,153.93,10.44903831]
[1748694749393,8.04182841,153.97,153.94,10.44903831]
[1748694749705,0.28432314,153.96,153.94,10.44903831]
[1748694750278,8.04182841,153.97,153.94,10.44903831]
[1748694750487,1.5469,153.97,153.94,10.44903831]
[1748694752595,8.04170357,153.97,153.94,10.44903831]
[1748694752809,1.5469,153.97,153.94,10.44903831]
[1748694753199,8.04167873,153.97,153.94,10.44903831]
[1748694753912,8.04167873,153.97,153.93,10.44903831]
[1748694754807,1.5469,153.97,153.94,10.44903831]
[1748694755205,6.49409671,153.99,153.95,10.44903831]
[1748694755514,0.28432314,153.98,153.95,10.44903831]
[1748694758714,0.28432314,153.98,153.96,10.44903831]
[1748694759094,0.28432314,154.0,153.97,10.44903831]
[1748694759415,0.28432314,154.0,153.93,12.64983945]
[1748694759416,0.28432314,154.0,153.98,10.44903831]
[1748694759910,0.28432314,154.0,153.97,10.44903831]
[1748694760618,6.77794099,154.0,153.97,10.44903831]
[1748694762197,25.42758985,154.0,153.96,10.44903831]
[1748694764717,25.42758985,154.0,153.94,6.49591915]
[1748694764914,25.42758985,154.0,153.96,10.44903831]
[1748694765118,25.42758985,154.0,153.94,6.49591915]
[1748694765319,25.42758985,154.0,153.96,10.44903831]
[1748694765948,0.28432314,153.98,153.94,10.44903831]
[1748694766222,0.28432314,153.96,153.93,10.44903831]
[1748694766406,0.28432314,153.94,153.91,20.70903831]
[1748694766596,0.28432314,153.94,153.91,10.26]
[1748694767711,6.78075258,153.94,153.91,10.26]
[1748694768517,6.78075258,153.94,153.91,20.70903831]
[1748694770816,6.78075258,153.94,153.91,10.26]
[1748694771898,17.22979089,153.94,153.89,10.44903831]
[1748694772509,6.7818623,153.91,153.87,20.70903831]
[1748694773417,6.7818623,153.91,153.87,10.26]
[1748694773418,0.28432314,153.89,153.87,10.26]
[1748694773801,0.28432314,153.89,153.85,10.44903831]
[1748694774024,10.73336145,153.89,153.85,10.44903831]
[1748694774722,17.23157881,153.89,153.85,10.44903831]
[1748694775300,17.23157881,153.89,153.84,10.44903831]
[1748694775712,6.7825405,153.89,153.85,10.44903831]
[1748694781329,0.28432314,153.89,153.85,10.44903831]
[1748694782215,0.28432314,153.89,153.85,16.94872103]
[1748694782419,0.14216157,153.9,153.86,10.44903831]
[1748694782623,10.59119988,153.9,153.86,10.44903831]
[1748694783107,17.08894509,153.9,153.86,10.44903831]
[1748694784032,17.08894509,153.9,153.85,16.94872103]
[1748694784226,17.08894509,153.9,153.85,10.44903831]
[1748694784421,17.08894509,153.9,153.85,16.94887494]
[1748694785227,10.59119988,153.9,153.86,10.44903831]
[1748694785447,17.08893313,153.9,153.86,10.44903831]
[1748694787728,17.08893313,153.9,153.85,10.44903831]
[1748694788943,17.08893313,153.9,153.86,10.44903831]
[1748694789527,17.08893313,153.9,153.85,16.94876996]
[1748694790523,17.08893313,153.9,153.85,10.44903831]
[1748694790822,17.08893313,153.9,153.84,6.50007979]
[1748694790823,0.14216157,153.88,153.84,10.44903831]
[1748694791127,10.59119988,153.88,153.84,10.44903831]
[1748694791445,0.14216157,153.88,153.84,10.44903831]
[1748694792326,6.64081624,153.88,153.84,10.44903831]
[1748694793746,0.14216157,153.88,153.85,10.44903831]
[1748694794051,6.64075681,153.88,153.85,10.44903831]
[1748694795424,0.14216157,153.88,153.85,10.44903831]
[1748694795640,0.28432314,153.9,153.87,10.44903831]
[1748694795826,0.14216157,153.9,153.87,10.44903831]
[1748694796025,0.28432314,153.9,153.87,10.44903831]
[1748694796328,0.14216157,153.9,153.87,10.44903831]
[1748694796525,0.28432314,153.9,153.87,10.44903831]
[1748694798245,1.6532,153.91,153.87,16.94794319]
[1748694798442,0.28432314,153.91,153.87,16.94794319]
[1748694798846,6.78164005,153.91,153.87,16.94794319]
[1748694800136,6.78164005,153.91,153.87,10.44903831]
[1748694800938,6.78164005,153.91,153.87,16.94801829]
[1748694801338,0.28432314,153.91,153.87,16.94801829]
[1748694801740,0.28432314,153.91,153.88,10.44903831]
[1748694802159,10.44903831,153.93,153.88,10.44903831]
[1748694802348,0.28432314,153.93,153.9,10.44903831]
[1748694802557,0.28432314,153.93,153.89,10.44903831]
[1748694804836,10.44903831,153.92,153.88,10.26]
[1748694805048,0.28432314,153.91,153.88,10.26]
[1748694805828,0.28432314,153.91,153.88,20.70903831]
[1748694806931,10.44903831,153.93,153.88,27.20739745]
[1748694807135,21.25921365,153.94,153.88,27.20739745]
[1748694807348,10.81017534,153.94,153.9,10.44903831]
[1748694807559,0.28432314,153.93,153.9,10.44903831]
[1748694808763,0.28432314,153.93,153.89,10.44903831]
[1748694809069,0.28432314,153.93,153.89,16.94711537]
[1748694810466,17.30631571,153.94,153.9,10.44903831]
[1748694810467,10.81017534,153.94,153.9,10.44903831]
[1748694811045,10.81017534,153.94,153.9,16.94652794]
[1748694813675,10.81017534,153.94,153.91,10.44903831]
[1748694813896,12.62003491,154.02,153.93,10.44903831]
[1748694814133,6.49283491,154.02,153.97,10.44903831]
[1748694814372,18.64964886,154.01,153.96,10.44903831]
[1748694814546,29.09868717,154.01,153.96,10.44903831]
[1748694814751,0.28432314,154.0,153.96,10.44903831]
[1748694815543,0.14216157,154.0,153.96,10.44903831]
[1748694815747,0.14216157,154.0,153.96,16.94416902]
[1748694815975,0.28432314,154.0,153.96,16.94416902]
[1748694816579,0.28432314,154.0,153.97,10.44903831]
[1748694818073,10.44903831,154.02,153.97,16.94373698]
[1748694818297,1.6111,154.04,153.99,10.44903831]
[1748694818576,1.6111,154.04,154.0,10.44903831]
[1748694818760,0.28432314,154.03,153.99,10.44903831]
[1748694818947,12.06013831,154.04,153.99,10.44903831]
[1748694819976,35.8645119,154.08,154.03,10.44903831]
[1748694820275,0.28432314,154.06,154.03,10.44903831]
[1748694820667,18.64964886,154.07,154.03,10.44903831]
[1748694821075,0.28432314,154.06,154.02,16.94146605]
[1748694821280,18.64964886,154.07,154.02,16.94146605]
[1748694821477,0.28432314,154.06,154.03,10.44903831]
[1748694822176,18.92522918,154.08,154.04,10.44903831]
[1748694822380,0.28432314,154.07,154.05,10.44903831]
[1748694822561,0.14216157,154.07,154.05,10.44903831]
[1748694822963,0.28432314,154.07,154.05,10.44903831]
[1748694823761,17.40362918,154.08,154.05,10.44903831]
[1748694825788,17.40362918,154.08,154.05,16.94033511]
[1748694826087,8.27502314,154.08,154.04,10.44903831]
[1748694826464,8.27502314,154.08,154.03,16.94119038]
[1748694828087,8.27502314,154.08,154.04,10.44903831]
[1748694828671,8.27502314,154.08,154.05,10.44903831]
[1748694829177,14.7651603,154.08,154.05,10.44903831]
[1748694829581,14.7651603,154.08,154.04,10.44903831]
[1748694829773,14.7651603,154.08,154.03,6.49215207]
[1748694829774,0.28432314,154.06,154.03,10.44903831]
[1748694832691,1.5133,154.08,154.05,10.44903831]
[1748694832866,1.5133,154.08,154.06,10.44903831]
[1748694833065,1.79762314,154.08,154.05,10.44903831]
[1748694833265,1.5133,154.08,154.05,10.44903831]
[1748694833488,1.5133,154.08,154.03,6.49206565]
[1748694833489,1.5133,154.08,154.06,10.44903831]
[1748694833688,1.5133,154.08,154.07,10.44903831]
[1748694833993,1.5133,154.08,154.06,10.44903831]
[1748694834788,0.28432314,154.09,154.06,10.44903831]
[1748694835398,0.28432314,154.09,154.07,10.44903831]
[1748694837365,18.64964886,154.1,154.07,10.44903831]
[1748694837366,32.48902365,154.11,154.07,10.44903831]
[1748694837566,0.28432314,154.1,154.07,10.44903831]
[1748694838787,26.0,154.11,154.08,10.44903831]
[1748694839171,0.14216157,154.11,154.08,10.44903831]
[1748694839367,0.28432314,154.11,154.08,10.44903831]
[1748694839989,18.933972,154.11,154.06,10.44903831]
[1748694840782,29.38301031,154.11,154.06,10.44903831]
[1748694840987,35.87217565,154.11,154.06,10.44903831]
[1748694844699,10.73336145,154.07,154.0,10.24]
[1748694845000,12.24696145,154.07,154.02,10.44903831]
[1748694845190,1.79792314,154.07,154.03,10.44903831]
[1748694845593,0.28432314,154.05,154.02,10.44903831]
[1748694848381,0.28432314,154.05,154.03,10.44903831]
[1748694849196,18.45333073,154.07,154.03,10.44903831]
[1748694849403,0.28432314,154.06,154.03,10.44903831]
[1748694854413,0.28432314,154.06,154.0,20.68903831]
[1748694854414,0.28432314,154.04,154.0,20.68903831]
[1748694854711,29.09868717,154.05,154.0,10.24]
[1748694854712,0.28432314,154.02,154.0,10.24]
[1748694854921,10.73336145,154.02,153.97,10.44903831]
[1748694855124,10.73336145,154.02,153.97,6.49461703]
[1748694855322,0.28432314,154.02,153.98,10.44903831]
[1748694855622,0.28432314,154.02,153.97,6.49461703]
[1748694855623,0.28432314,154.02,153.99,10.44903831]
[1748694856907,0.28432314,154.02,153.98,16.94302228]
[1748694857600,6.77700457,154.02,153.98,10.44903831]
[1748694858489,6.77700457,154.02,153.97,10.44903831]
[1748694858692,0.28432314,154.0,153.96,20.68903831]
[1748694859587,0.28432314,153.98,153.96,10.24]
[1748694860190,0.28432314,153.98,153.93,103.90903831]
[1748694860393,0.28432314,153.96,153.93,103.90903831]
[1748694860809,0.28432314,153.96,153.93,110.40536264]
[1748694861703,0.28432314,153.96,153.94,10.44903831]
[1748694862206,0.28432314,153.98,153.95,16.94454118]
[1748694865304,0.28432314,153.98,153.95,10.44903831]
[1748694865499,0.28432314,153.98,153.94,16.94490406]
[1748694866217,0.28432314,153.98,153.95,10.44903831]
[1748694868322,0.28432314,153.98,153.94,6.49586575]
[1748694868323,0.28432314,153.98,153.94,16.94490406]
[1748694869907,0.28432314,153.98,153.96,10.44903831]
[1748694870725,0.28432314,153.98,153.95,10.44903831]
[1748694871704,0.28432314,153.98,153.95,16.94457179]
[1748694874125,0.28432314,153.98,153.95,10.44903831]
[1748694874626,0.28432314,153.98,153.95,16.94464902]
[1748694881928,10.44903831,154.01,153.95,16.94464902]
[1748694882226,1.5906,154.02,153.98,10.44903831]